bitfinex-derivatives/quotes_ETHF0:USTF0_20251013
["timestamp","ask_amount","ask_price","bid_price","bid_amount"]
[1760360466664,0.4273,4102.7,4101.2,1.95282801]
[1760360466665,1.0905,4101.3,4101.2,0.00193644]
[1760360466869,1.0905,4101.3,4100.2,4.50267001]
[1760360466870,1.0905,4100.5,4100.3,0.43864]
[1760360467060,1.0905,4101.2,4100.6,0.43861]
[1760360467265,1.0905,4101.2,4101.1,3.2078]
[1760360467570,0.43859,4100.9,4099.9,3.2078]
[1760360467772,1.52913,4100.5,4100.4,3.2078]
[1760360467975,0.43863,4100.5,4100.4,0.258]
[1760360468370,0.4273,4100.6,4100.5,0.43862]
[1760360468671,1.0905,4101.3,4100.5,3.2078]
[1760360468867,1.0905,4101.5,4101.2,3.2078]
[1760360469068,1.0905,4101.5,4101.4,0.43852]
[1760360469263,1.0905,4101.2,4100.5,3.2078]
[1760360469569,0.86517826,4103.9,4101.6,1.09627]
[1760360469866,1.09564,4104.0,4102.1,3.2078]
[1760360469867,3.20999088,4103.0,4102.1,3.2078]
[1760360470072,1.0905,4102.3,4102.2,0.69744]
[1760360470271,0.00219088,4103.0,4102.2,0.259]
[1760360470467,0.00219088,4103.0,4102.7,3.2078]
[1760360470773,0.00219088,4103.0,4101.6,0.85453157]
[1760360470774,0.4273,4102.4,4102.3,0.43843]
[1760360471071,0.4273,4102.4,4102.3,0.259]
[1760360471267,0.43843,4102.3,4102.0,3.2078]
[1760360471475,1.0905,4102.2,4102.1,0.259]
[1760360471868,0.4273,4102.4,4102.0,3.2078]
[1760360472076,1.0905,4102.1,4102.0,3.2078]
[1760360472275,1.0905,4102.1,4102.0,3.4668]
[1760360472877,1.5178,4101.6,4101.5,3.2078]
[1760360473173,1.5178,4101.6,4101.5,3.4668]
[1760360473364,1.5178,4101.6,4101.5,3.2078]
[1760360474379,1.5178,4101.6,4101.5,3.4668]
[1760360474673,0.4273,4102.4,4102.2,0.43844]
[1760360474866,0.4273,4102.4,4100.9,1.29487001]
[1760360474867,0.86572,4102.4,4102.3,0.259]
[1760360475068,0.4385,4101.7,4101.6,3.2078]
[1760360475270,0.4385,4101.7,4101.6,3.4668]
[1760360475572,1.5316,4101.7,4101.6,3.4668]
[1760360476481,0.4273,4102.0,4101.9,0.43847]
[1760360476770,0.4273,4102.0,4101.9,0.69747]
[1760360476977,1.53153,4102.3,4102.2,0.43844]
[1760360477269,0.4385,4101.7,4101.5,3.2078]
[1760360477463,1.0931,4101.6,4101.5,3.4668]
[1760360477777,0.43856,4101.1,4101.0,3.2078]
[1760360478075,1.53166,4101.1,4101.0,3.4668]
[1760360480072,1.53166,4101.1,4101.0,3.2078]
[1760360480374,0.43867,4100.1,4100.0,3.2078]
[1760360480574,1.09560263,4100.1,4100.0,3.2078]
[1760360480780,1.09560263,4100.1,4100.0,3.4668]
[1760360480980,1.09560263,4100.1,4100.0,3.2078]
[1760360481282,1.09560263,4100.1,4100.0,3.4668]
[1760360483880,1.09560263,4100.1,4100.0,3.2078]
[1760360484178,1.53178,4100.0,4099.9,0.0018294]
[1760360484370,1.53187,4099.1,4099.0,3.2078]
[1760360484567,1.53187,4099.1,4099.0,3.4658]
[1760360484773,1.0931,4099.1,4099.0,3.2078]
[1760360485273,1.0931,4099.1,4099.0,3.90674169]
[1760360485775,1.0931,4099.7,4099.3,0.43875]
[1760360485980,0.8865,4099.8,4099.5,3.2078]
[1760360486281,1.0931,4099.7,4099.6,0.258]
[1760360487176,0.43877,4099.1,4099.0,3.20996169]
[1760360487476,1.53187,4099.1,4099.0,3.20996169]
[1760360487683,1.53187,4099.1,4099.0,3.46796169]
[1760360487886,1.53187,4099.1,4099.0,3.20996169]
[1760360488075,1.53187,4099.1,4099.0,0.26016169]
[1760360488673,1.0931,4099.1,4099.0,3.46796169]
[1760360489282,1.53182,4099.7,4099.0,3.46796169]
[1760360489481,1.0931,4099.6,4099.5,3.2078]
[1760360489681,1.0931,4099.6,4099.5,3.4658]
[1760360491280,1.0931,4099.6,4099.0,0.00216169]
[1760360491281,1.0931,4099.1,4099.0,0.00216169]
[1760360491685,1.0931,4099.1,4099.0,0.26016169]
[1760360491884,1.0931,4099.1,4098.7,3.2078]
[1760360492186,0.88669,4098.0,4097.8,0.02440334]
[1760360492381,0.4478,4098.0,4097.9,0.258]
[1760360492684,0.4478,4098.0,4097.8,0.02440334]
[1760360492884,1.0931,4097.9,4097.8,0.02440334]
[1760360493087,1.0931,4097.9,4097.8,0.28414299]
[1760360494490,1.0931,4098.5,4098.4,0.43885]
[1760360494681,0.4478,4098.6,4098.4,3.90465]
[1760360495188,1.5409,4098.6,4098.4,3.90465]
[1760360495883,0.4478,4099.2,4099.1,0.43877]
[1760360496187,1.0931,4099.7,4099.2,1.09691]
[1760360496391,0.00250263,4100.1,4100.0,0.43868]
[1760360496591,1.09560263,4100.1,4100.0,0.69668]
[1760360496888,0.00250263,4100.1,4100.0,0.69668]
[1760360497093,0.43853,4101.4,4100.9,0.43858]
[1760360497386,1.5409,4101.0,4100.9,3.90438]
[1760360497688,1.0931,4101.5,4101.3,0.43853]
[1760360497983,1.09618024,4101.5,4101.4,3.4658]
[1760360498182,1.53470024,4101.5,4101.4,3.4658]
[1760360498488,1.09618024,4101.5,4101.4,3.4658]
[1760360499278,1.0931,4102.1,4101.5,1.53482]
[1760360499480,0.4478,4102.8,4102.5,0.43841]
[1760360499481,1.0931,4102.6,4102.5,0.43841]
[1760360499684,1.0931,4103.1,4102.7,0.43839]
[1760360499882,0.4478,4103.4,4103.2,0.43833]
[1760360500080,1.0931,4103.9,4103.3,0.69631]
[1760360500289,1.0931,4103.9,4103.8,3.2078]
[1760360500488,0.00236411,4103.9,4103.8,3.4658]
[1760360500688,1.0931,4104.5,4103.8,3.4658]
[1760360500894,1.0931,4104.5,4104.4,3.2078]
[1760360501392,1.0931,4104.5,4104.4,3.4658]
[1760360501587,1.09611676,4104.5,4104.4,3.46879796]
[1760360501788,1.09611676,4104.5,4104.4,0.26099796]
[1760360501987,1.09611676,4104.5,4104.4,3.90700796]
[1760360502492,0.00301676,4104.5,4104.4,3.46879796]
[1760360502786,1.09611676,4104.5,4104.4,3.46879796]
[1760360502988,0.00301676,4104.5,4104.4,3.46879796]
[1760360503493,1.0931,4105.7,4105.1,0.43812]
[1760360503794,0.4478,4105.8,4105.2,0.257]
[1760360503995,0.4381,4105.5,4105.3,0.257]
[1760360504183,0.4381,4105.5,4105.0,3.2078]
[1760360504184,1.53123,4105.1,4105.0,3.2078]
[1760360504384,1.53296761,4105.1,4105.0,3.2078]
[1760360504698,1.53129,4104.6,4104.4,0.00299796]
[1760360504888,1.0931,4104.5,4104.4,0.00299796]
[1760360505192,1.0931,4104.5,4102.4,1.09604]
[1760360505193,1.0931,4104.0,4103.9,0.257]
[1760360505491,1.0931,4104.0,4103.5,3.2078]
[1760360505492,0.43829,4103.6,4103.5,3.2078]
[1760360505693,0.43834,4103.2,4103.0,3.2078]
[1760360505882,0.43834,4103.2,4101.4,1.09631]
[1760360505883,1.5268,4102.6,4102.5,3.2078]
[1760360506085,1.0884,4102.6,4102.5,3.46657617]
[1760360506282,0.4285,4102.7,4102.5,3.46657617]
[1760360506491,1.0884,4103.3,4102.9,0.43836]
[1760360506689,1.0884,4103.3,4102.5,3.46657617]
[1760360506690,1.0884,4103.3,4103.2,3.2078]
[1760360507093,1.0884,4102.8,4102.7,3.2078]
[1760360507287,1.0884,4102.8,4102.7,3.4658]
[1760360508184,1.0884,4102.8,4102.7,3.2078]
[1760360508387,1.0884,4102.8,4102.7,3.4648]
[1760360508889,0.86689,4102.7,4102.6,0.258]
[1760360509085,0.4285,4102.7,4102.6,3.4658]
[1760360509287,0.4285,4102.7,4102.6,3.9042]
[1760360509488,1.5169,4102.7,4102.6,3.4658]
[1760360509795,1.4968,4102.6,4102.5,0.00177617]
[1760360510892,1.4968,4102.6,4102.5,0.25977617]
[1760360511791,1.4968,4102.6,4102.5,0.25877617]
[1760360511988,1.4968,4102.6,4101.3,3.2078]
[1760360511989,0.3981,4101.6,4101.3,3.2078]
[1760360512292,0.83668,4101.0,4100.7,3.2078]
[1760360512483,1.0584,4100.9,4100.8,0.69559]
[1760360512688,0.3981,4101.0,4100.8,0.69559]
[1760360512888,1.0584,4100.8,4100.7,3.2078]
[1760360513395,1.06021571,4100.8,4100.7,3.46768256]
[1760360513991,0.00181571,4100.8,4100.7,3.46768256]
[1760360514288,0.3981,4102.2,4101.1,1.09639]
[1760360514486,0.3981,4102.2,4101.7,3.2078]
[1760360514689,0.3981,4102.2,4101.8,0.69548]
[1760360514989,1.0584,4101.9,4101.8,0.257]
[1760360515383,1.49688,4101.8,4101.7,3.2078]
[1760360515593,1.0584,4101.2,4101.1,3.64636]
[1760360515796,1.0584,4101.2,4101.1,3.90336]
[1760360516088,0.0021009,4101.9,4101.8,0.43848]
[1760360516295,1.0605009,4101.9,4101.8,0.257]
[1760360516485,1.0584,4101.8,4101.7,3.64629]
[1760360516687,1.0584,4101.8,4101.7,3.4648]
[1760360517193,1.0584,4101.8,4101.7,3.9033]
[1760360517392,0.0021009,4101.9,4101.7,3.9033]
[1760360517695,0.0021009,4101.9,4101.7,3.6463]
[1760360517990,0.0021009,4101.9,4101.8,0.257]
[1760360518291,1.0584,4102.9,4102.0,1.09617]
[1760360518490,0.3981,4103.4,4102.5,3.2078]
[1760360518792,0.3981,4103.4,4102.4,3.2078]
[1760360518793,0.43841,4102.6,4102.4,3.2078]
[1760360519095,1.0584,4103.1,4102.5,0.257]
[1760360519291,0.00316042,4103.1,4103.0,0.43835]
[1760360519492,0.00316042,4103.1,4103.0,0.69535]
[1760360519493,1.06156042,4103.1,4103.0,0.69535]
[1760360519693,0.00316042,4103.1,4103.0,0.69535]
[1760360519892,0.00316042,4103.1,4102.9,3.2078]
[1760360519893,0.43842,4102.4,4102.3,3.2078]
[1760360520196,1.0584,4101.8,4101.7,3.2078]
[1760360520399,1.0584,4101.8,4099.7,3.91597888]
[1760360520400,0.43854,4101.3,4101.2,3.2078]
[1760360520590,1.49694,4101.3,4101.2,3.2078]
[1760360520789,1.49694,4101.3,4101.2,3.4658]
[1760360520991,1.0584,4101.3,4101.2,3.4658]
[1760360521592,1.0584,4101.3,4101.2,3.2078]
[1760360521989,1.49699,4100.8,4100.7,3.21068256]
[1760360522397,1.49699,4100.8,4100.7,3.46868256]
[1760360522996,1.49699,4100.8,4100.7,0.26088256]
[1760360523200,3.2078,4101.5,4100.7,0.26088256]
[1760360523496,1.0584,4102.1,4101.8,0.43848]
[1760360523797,1.0584,4102.1,4101.9,0.69647]
[1760360523998,1.4565,4102.8,4102.4,0.43842]
[1760360524199,1.06156042,4103.1,4103.0,0.43836]
[1760360524396,1.06156042,4103.1,4103.0,0.69636]
[1760360524793,0.00316042,4103.1,4103.0,0.69636]
[1760360525109,1.0584,4103.8,4103.6,0.43829]
[1760360525402,0.83635,4104.0,4103.8,0.43827]
[1760360525403,1.0584,4103.9,4103.8,0.43827]
[1760360525605,3.2078,4104.9,4103.7,0.258]
[1760360525606,1.0584,4104.5,4104.4,0.43821]
[1760360525791,1.0584,4104.5,4104.4,0.258]
[1760360525993,1.06056006,4104.5,4104.4,0.26009958]
[1760360526599,1.06056006,4104.5,4104.4,3.46789958]
[1760360527402,1.06056006,4104.5,4104.4,3.20989958]
[1760360527702,1.06056006,4104.5,4104.4,0.00209958]
[1760360527902,1.06056006,4104.5,4103.0,1.09588]
[1760360527903,0.3981,4103.4,4103.3,3.2078]
[1760360528097,3.2078,4104.9,4103.3,3.2078]
[1760360528098,4.2662,4105.8,4105.1,0.43812]
[1760360528307,1.26327826,4106.2,4105.3,0.4381]
[1760360528308,1.0584,4105.4,4105.3,0.4381]
[1760360528497,1.0584,4106.1,4105.3,0.258]
[1760360528694,0.3981,4106.2,4105.8,3.2078]
[1760360528897,1.0584,4106.7,4106.4,0.43799]
[1760360529103,0.00227445,4106.7,4106.6,0.43797]
[1760360529705,1.0584,4106.6,4106.5,3.4658]
[1760360529998,1.0584,4106.6,4106.5,3.2078]
[1760360530203,1.0584,4106.6,4106.5,3.4658]
[1760360530604,0.00227445,4106.7,4106.5,3.4658]
[1760360531002,1.06067445,4106.7,4106.5,3.4658]
[1760360531402,1.06067445,4106.7,4106.5,3.90378]
[1760360532108,0.00227445,4106.7,4106.5,3.90378]
[1760360532304,0.3981,4107.6,4106.5,3.4658]
[1760360532505,0.022,4107.8,4107.6,0.43786]
[1760360532699,0.022,4107.8,4107.7,0.257]
[1760360533408,0.02403482,4107.8,4107.7,0.257]
[1760360533704,0.3981,4109.0,4107.7,1.35163]
[1760360533904,1.0584,4108.9,4108.8,3.2078]
[1760360534110,1.0584,4108.9,4108.8,3.4648]
[1760360534408,1.0584,4110.6,4108.8,3.4648]
[1760360534600,1.0584,4110.6,4110.2,0.43758]
[1760360534799,1.0584,4110.6,4109.9,3.2078]
[1760360534800,0.8356,4111.1,4110.3,0.258]
[1760360535008,1.894,4111.1,4110.6,3.2078]
[1760360535206,1.0584,4111.0,4110.7,0.258]
[1760360535407,0.3981,4111.1,4110.8,0.43752]
[1760360535604,1.4613,4111.8,4110.7,0.26074957]
[1760360535918,1.0632,4111.7,4111.3,3.2078]
[1760360536215,0.43752,4110.9,4110.7,0.00274957]
[1760360536405,1.0632,4110.8,4110.7,0.00274957]
[1760360536605,1.06610575,4110.8,4110.7,0.26074957]
[1760360536799,1.06610575,4110.8,4108.5,11.503]
[1760360536800,0.4052,4110.4,4110.1,3.2078]
[1760360537003,0.4052,4110.4,4110.2,0.258]
[1760360537305,0.43764,4109.7,4109.6,3.2078]
[1760360537508,1.50084,4109.7,4109.6,3.2078]
[1760360537708,1.50084,4109.7,4109.6,3.4658]
[1760360538013,1.50084,4109.7,4109.6,3.21069603]
[1760360538208,1.50084,4109.7,4109.6,0.26089603]
[1760360538707,1.50084,4109.7,4108.9,0.43772]
[1760360538708,1.50091,4109.1,4109.0,3.2078]
[1760360539018,1.50091,4109.1,4109.0,0.258]
[1760360539806,1.50091,4109.1,4109.0,0.26021309]
[1760360540012,1.0632,4108.7,4108.0,3.2078]
[1760360540203,1.50103,4107.9,4107.8,3.2078]
[1760360540403,1.50103,4107.9,4107.8,0.258]
[1760360540801,0.4052,4108.0,4107.8,3.4658]
[1760360541014,0.4052,4108.0,4107.8,3.90644801]
[1760360541015,0.00296551,4108.0,4107.8,3.90644801]
[1760360542114,0.00296551,4108.0,4107.8,3.46860801]
[1760360542310,0.00296551,4108.0,4107.8,3.90644801]
[1760360542617,0.43778,4108.5,4107.8,3.46860801]
[1760360542816,0.84295,4108.8,4108.4,3.64557]
[1760360543109,0.4052,4109.6,4109.3,0.43768]
[1760360543307,0.4052,4109.6,4109.4,3.4658]
[1760360543508,1.09369,4111.3,4109.4,3.4658]
[1760360543509,0.84277,4110.4,4109.8,0.43763]
[1760360543709,0.00229015,4109.6,4109.5,0.43766]
[1760360543915,0.00229015,4109.6,4109.5,3.90346]
[1760360544115,0.4052,4110.4,4110.3,0.43758]
[1760360544309,0.4052,4110.4,4110.3,3.90338]
[1760360544506,0.4052,4110.4,4110.3,3.4658]
[1760360544711,1.4684,4110.4,4110.3,3.4658]
[1760360544917,1.90597,4110.4,4110.3,3.2078]
[1760360545210,1.9083947,4110.4,4110.3,3.2078]
[1760360545419,1.9083947,4110.4,4107.7,2.18926]
[1760360545420,0.4377,4109.2,4109.0,3.2078]
[1760360545714,1.0632,4109.2,4109.1,0.257]
[1760360547421,0.4052,4109.6,4109.4,0.43767]
[1760360547612,0.4052,4109.6,4109.5,3.2078]
[1760360547918,1.4684,4109.6,4109.5,3.2078]
[1760360548117,1.4684,4109.6,4109.5,3.4648]
[1760360548615,0.4076247,4110.4,4109.6,1.09414]
[1760360548818,3.2298,4112.8,4110.4,1.09391]
[1760360549007,3.2298,4112.8,4109.9,2.18807]
[1760360549008,0.43736,4112.4,4111.7,0.43742]
[1760360549211,3.2298,4112.8,4111.8,0.257]
[1760360549212,0.022,4112.8,4111.8,0.257]
[1760360549519,0.022,4112.8,4112.4,3.2078]
[1760360549719,0.0244175,4112.8,4112.5,0.257]
[1760360549919,0.43732,4112.7,4112.5,0.257]
[1760360550120,0.0244175,4112.8,4112.4,3.21019928]
[1760360550121,0.43734,4112.6,4112.4,3.21019928]
[1760360550318,0.43734,4112.6,4112.5,0.257]
[1760360551017,1.50054,4112.6,4112.5,0.257]
[1760360551211,1.50054,4112.6,4112.4,0.00239928]
[1760360551527,0.0244175,4112.8,4108.7,3.48358001]
[1760360551528,0.43749,4111.1,4111.0,3.2078]
[1760360551820,1.50069,4111.1,4111.0,3.2078]
[1760360552120,1.50069,4111.1,4109.1,12.58625]
[1760360552121,1.50076,4110.5,4110.4,3.2078]
[1760360552419,1.50076,4110.5,4110.4,3.21073905]
[1760360552622,1.50076,4110.5,4110.4,0.25993905]
[1760360552921,1.50082,4109.9,4109.8,3.2078]
[1760360553121,1.50082,4109.9,4109.8,3.4648]
[1760360553310,0.4052,4110.4,4109.8,3.4648]
[1760360553509,1.0632,4111.6,4110.3,3.2078]
[1760360553714,0.40694467,4111.2,4111.1,3.2078]
[1760360553913,1.47014467,4111.2,4110.6,3.2078]
[1760360554120,1.0632,4111.1,4110.7,0.257]
[1760360554322,0.40694467,4111.2,4111.0,0.4375]
[1760360554519,0.40694467,4111.2,4111.1,3.4648]
[1760360554719,1.4684,4110.4,4110.3,0.00298089]
[1760360555820,1.5008,4110.1,4110.0,0.258]
[1760360556124,0.40694467,4111.2,4110.0,0.258]
[1760360556419,0.40694467,4111.2,4110.9,0.43751]
[1760360556420,1.0632,4111.1,4110.9,0.43751]
[1760360556623,1.0632,4111.1,4110.7,3.2078]
[1760360556624,0.4052,4112.0,4111.3,0.43747]
[1760360556819,0.4052,4112.0,4111.6,3.2078]
[1760360557026,0.4052,4112.0,4111.7,0.258]
[1760360557220,0.4052,4111.2,4110.8,3.2078]
[1760360557421,0.84269,4111.2,4110.9,0.258]
[1760360557720,0.4375,4111.1,4110.9,0.26085625]
[1760360558723,0.40785057,4111.2,4111.1,0.43749]
[1760360559533,0.40785057,4111.2,4110.9,0.26085625]
[1760360559534,0.40785057,4111.2,4110.9,0.00285625]
[1760360559716,0.40785057,4111.2,4110.8,3.2078]
[1760360559717,1.0632,4109.6,4109.5,3.2078]
[1760360559917,0.4052,4110.3,4109.0,0.86791454]
[1760360559918,1.50091,4109.1,4109.0,3.4658]
[1760360560325,0.4052,4109.4,4109.1,0.4377]
[1760360560625,1.0632,4109.3,4109.2,0.258]
[1760360561426,0.4052,4110.3,4109.2,0.258]
[1760360561618,0.4052,4110.3,4110.2,3.2078]
[1760360561820,0.4052,4110.3,4110.2,3.4658]
[1760360562027,1.0632,4111.1,4110.2,3.4658]
[1760360562229,1.0632,4111.1,4111.0,3.2078]
[1760360562424,0.40785057,4111.2,4111.0,3.9043]
[1760360562826,1.0632,4111.1,4111.0,3.4668]
[1760360563227,0.40785057,4111.2,4111.1,0.43749]
[1760360563430,1.0632,4111.1,4111.0,3.2078]
[1760360563630,1.0632,4111.1,4111.0,3.4668]
[1760360563820,0.40785057,4111.2,4111.0,3.4668]
[1760360564128,1.50069,4111.1,4111.0,3.2078]
[1760360564329,1.50069,4111.1,4111.0,3.4668]
[1760360564526,1.0632,4111.1,4111.0,3.4668]
[1760360565622,1.0553,4111.1,4111.0,3.4668]
[1760360566429,1.0553,4111.1,4111.0,3.2078]
[1760360566825,1.49287,4110.4,4110.3,3.2078]
[1760360567328,1.49289,4110.2,4110.1,0.258]
[1760360567525,0.43762,4109.9,4109.8,3.2078]
[1760360567730,1.49292,4109.9,4109.8,0.258]
[1760360568122,1.49292,4109.9,4109.8,3.4658]
[1760360568520,0.43761,4110.0,4109.8,3.4658]
[1760360568726,1.0553,4109.9,4109.8,3.4658]
[1760360568926,1.0553,4109.9,4109.8,0.258]
[1760360569230,1.0553,4109.5,4109.3,3.2078]
[1760360569529,0.4294,4109.6,4109.5,0.43766]
[1760360569731,0.4294,4109.6,4109.4,0.258]
[1760360569932,0.4294,4109.6,4109.4,0.69567]
[1760360570732,1.0553,4110.2,4109.4,0.258]
[1760360570937,1.0553,4109.4,4109.3,3.2078]
[1760360571233,1.0553,4109.4,4109.3,3.4658]
[1760360572734,0.43767,4109.5,4109.3,3.4658]
[1760360573524,0.4294,4110.3,4109.3,3.4658]
[1760360573525,0.43763,4109.8,4109.4,0.43767]
[1760360573731,0.43763,4109.8,4109.5,0.69566]
[1760360574028,0.86698,4110.3,4109.6,0.86791454]
[1760360574234,0.4294,4110.3,4110.2,3.2078]
[1760360574434,0.4294,4110.3,4110.2,3.4658]
[1760360575030,1.09363,4111.5,4110.2,3.4658]
[1760360575031,2.34221826,4112.6,4110.8,1.09381]
[1760360575233,0.43736,4112.4,4111.9,3.64521]
[1760360575432,1.0397,4112.6,4111.9,3.90321]
[1760360575626,0.43736,4112.4,4111.9,3.90321]
[1760360576031,0.4346,4112.8,4111.9,3.2078]
[1760360576032,1.52789,4112.8,4111.9,3.2078]
[1760360576238,1.47081629,4112.0,4111.9,3.4658]
[1760360577131,1.47081629,4112.0,4111.9,3.2078]
[1760360577339,1.47081629,4112.0,4110.1,2.14221202]
[1760360577340,1.0397,4111.9,4111.8,0.258]
[1760360577533,1.47716,4111.4,4111.3,3.2078]
[1760360577837,1.47716,4111.4,4111.3,3.4658]
[1760360578237,1.0397,4111.4,4111.3,3.4658]
[1760360578439,1.0397,4111.4,4111.3,3.2078]
[1760360578742,1.47721,4110.9,4110.8,3.2078]
[1760360578935,0.4126,4110.4,4110.3,3.2078]
[1760360579139,1.4523,4110.4,4110.3,3.4658]
[1760360579736,1.4523,4110.4,4110.3,3.2078]
[1760360579938,1.4523,4110.4,4109.3,1.29487001]
[1760360579939,1.47732,4109.9,4109.8,3.2078]
[1760360580138,1.47732,4109.9,4109.8,3.4658]
[1760360580836,0.4126,4110.4,4109.8,3.4658]
[1760360580837,1.47731,4110.0,4109.8,3.4658]
[1760360581037,0.4126,4111.2,4109.8,4.55987]
[1760360581244,0.4126,4111.2,4111.1,3.2078]
[1760360581441,0.86851629,4112.0,4111.1,3.4658]
[1760360581639,0.86851629,4112.0,4111.8,3.2078]
[1760360581640,1.47711,4111.9,4111.8,3.2078]
[1760360581939,1.0397,4111.1,4110.7,0.86200261]
[1760360582241,1.4523,4111.2,4111.0,3.2078]
[1760360582543,1.4523,4111.2,4111.1,0.258]
[1760360582743,0.4126,4111.2,4111.1,0.258]
[1760360583542,1.4523,4111.2,4111.1,0.258]
[1760360583743,1.4523,4111.2,4111.0,3.2078]
[1760360583744,1.0397,4111.1,4111.0,3.2078]
[1760360583941,0.4126,4110.4,4109.6,0.86200261]
[1760360584146,1.4523,4109.6,4109.5,3.2078]
[1760360584346,2.54646,4109.6,4109.1,0.00306997]
[1760360584547,1.4774,4109.2,4109.1,0.00306997]
[1760360584850,1.4774,4109.2,4109.1,0.26106997]
[1760360585251,1.4774,4109.2,4109.1,0.00306997]
[1760360585546,1.4774,4109.2,4109.1,0.26106997]
[1760360586347,1.4774,4109.2,4108.4,3.2078]
[1760360586348,1.89007,4108.5,4108.4,3.2078]
[1760360586541,1.0945,4108.3,4107.9,3.2078]
[1760360586747,1.0397,4108.1,4108.0,0.258]
[1760360587151,1.0397,4108.4,4108.0,0.258]
[1760360587451,1.04278485,4108.4,4108.0,0.26074734]
[1760360587650,1.4775,4108.3,4108.0,0.26074734]
[1760360588750,1.0397,4108.1,4108.0,0.00274734]
[1760360588950,1.0397,4108.1,4108.0,0.26074734]
[1760360590355,1.0397,4107.1,4106.8,3.2078]
[1760360590563,1.47764,4106.9,4106.8,3.2078]
[1760360590856,0.4126,4107.2,4105.7,0.86271416]
[1760360590857,1.0397,4105.9,4105.7,0.86271416]
[1760360591058,0.43802,4106.2,4106.1,3.2078]
[1760360591359,0.43807,4105.7,4105.6,3.2078]
[1760360591561,1.47777,4105.7,4105.6,3.21008971]
[1760360591764,1.47777,4105.7,4105.6,0.26028971]
[1760360592162,0.85077,4104.8,4104.6,3.2078]
[1760360592361,0.85077,4104.8,4104.7,0.258]
[1760360592554,0.43817,4104.7,4104.6,3.2078]
[1760360592763,1.47787,4104.7,4104.6,0.258]
[1760360593060,1.04153239,4104.7,4104.6,3.4684173]
[1760360593360,13.5526,4106.4,4104.6,3.4684173]
[1760360593361,1.0397,4106.7,4104.6,3.4684173]
[1760360593563,0.4126,4107.2,4106.6,3.2078]
[1760360593760,0.43795,4106.9,4106.7,0.258]
[1760360593960,0.43798,4106.6,4105.8,3.2078]
[1760360594263,0.438,4106.4,4105.9,0.258]
[1760360594463,0.438,4106.4,4104.9,1.28968647]
[1760360594464,0.00192144,4106.6,4105.1,3.2078]
[1760360594658,0.4126,4105.8,4105.6,3.2078]
[1760360594854,0.4126,4105.8,4105.7,0.258]
[1760360595056,0.00192144,4106.6,4105.7,0.258]
[1760360595253,0.00192144,4106.6,4106.3,3.2078]
[1760360595465,0.4384,4105.8,4105.3,3.2078]
[1760360595661,1.0905,4105.4,4105.3,3.2078]
[1760360595864,0.4384,4105.8,4104.6,0.0026173]
[1760360595865,0.4384,4104.9,4104.6,0.0026173]
[1760360596165,1.52866,4104.8,4104.7,0.258]
[1760360596462,1.0905,4104.8,4104.7,0.258]
[1760360596867,0.4384,4104.9,4104.7,0.258]
[1760360597057,0.4384,4104.9,4104.8,3.2078]
[1760360597253,0.4384,4104.9,4104.8,3.64596]
[1760360597456,0.4384,4105.8,4104.8,3.2078]
[1760360597662,0.43814,4105.0,4104.9,3.4658]
[1760360597860,1.52867,4104.7,4104.6,0.0026173]
[1760360598061,0.4384,4104.9,4104.6,0.2606173]
[1760360598062,0.87656,4104.9,4104.6,0.2606173]
[1760360598256,0.4384,4104.9,4104.6,0.2606173]
[1760360598452,0.4384,4104.9,4104.6,0.0026173]
[1760360598761,1.0905,4104.7,4104.6,0.0026173]
[1760360599164,1.0905,4104.7,4104.6,0.2606173]
[1760360599457,1.0905,4103.9,4103.8,3.2078]
[1760360599656,1.0905,4103.9,4103.8,3.4658]
[1760360599857,0.4384,4104.0,4103.8,3.4658]
[1760360600060,1.0905,4103.9,4103.8,3.2078]
[1760360600262,1.0905,4103.9,4103.8,3.46830513]
[1760360600472,0.4384,4104.0,4103.8,3.90657513]
[1760360600767,1.0905,4104.5,4104.0,0.43824]
[1760360600963,1.0905,4104.5,4104.4,3.2078]
[1760360601161,0.87656,4104.9,4104.4,3.4658]
[1760360601367,1.0905,4104.6,4104.4,3.4658]
[1760360601666,0.4384,4104.9,4104.4,3.4658]
[1760360601667,1.5287,4104.5,4104.4,3.2078]
[1760360601866,1.5287,4104.5,4104.4,3.4658]
[1760360603756,1.0905,4103.9,4103.8,3.21030513]
[1760360603962,1.0905,4103.9,4103.8,0.00250513]
[1760360605160,1.0905,4103.9,4103.8,3.21030513]
[1760360605766,0.4384,4104.0,4103.8,3.21030513]
[1760360605966,1.0905,4105.2,4103.8,3.21030513]
[1760360606170,0.43817,4104.8,4104.6,3.2078]
[1760360606469,1.0905,4104.1,4104.0,3.2078]
[1760360606669,1.0905,4104.1,4104.0,3.4658]
[1760360606670,1.5289,4104.1,4104.0,3.4658]
[1760360607573,0.4384,4104.1,4104.0,3.4658]
[1760360607867,1.96714,4104.1,4104.0,3.4658]
[1760360608071,1.96714,4104.1,4103.8,0.00250513]
[1760360608072,1.5289,4104.1,4103.8,0.00250513]
[1760360608273,1.5289,4104.1,4103.3,3.2078]
[1760360608274,1.96721,4103.4,4103.3,3.2078]
[1760360608571,1.52887,4102.9,4102.8,3.2321736]
[1760360608759,1.52887,4102.9,4102.8,3.4901736]
[1760360609166,1.52887,4102.9,4102.8,3.2321736]
[1760360609360,1.53150004,4102.9,4102.8,3.49327671]
[1760360610167,1.09313004,4102.9,4102.8,3.49327671]
[1760360611563,1.09313004,4102.9,4102.8,3.23527671]
[1760360611765,1.09313004,4102.9,4102.8,0.02747671]
[1760360612269,1.52897,4101.9,4101.8,3.2078]
[1760360612571,0.43851,4101.6,4101.1,3.2078]
[1760360612766,0.4384,4102.0,4101.2,0.258]